{"text_format":"1","workbook":"xlsx","n_sheets":3,"sheets":["priseencharge","Liste","Feuil1"],"not_rendered":{"charts":0,"images":0,"macros":1,"external_links":0,"defined_names":6,"comments":1,"pivot_tables":0},"unopened":[],"bounds":{"document_bytes":16777216,"sheet_cells":100000,"rows_first":2000,"rows_last":500,"rows_between":2000,"halvings":0,"cell_chars":16384,"cell_head_chars":4096},"cells_cut":0,"cells_raw":0,"read":"whole","date_system":"1900"}

{"sheet":"priseencharge","index":0,"n_rows":51,"n_cols":29,"rows_kept":51,"cut":false,"hidden":false,"merged":[[17,2,17,3],[25,1,25,7],[33,7,33,9],[19,5,19,9],[20,6,20,9],[30,1,30,9],[0,13,0,14],[13,1,13,2],[6,2,6,4],[9,2,9,4],[10,3,10,4],[5,6,5,8],[12,1,12,2],[3,1,3,7],[4,1,4,9],[6,7,6,9],[12,7,12,9],[44,2,44,3],[39,7,39,9],[46,6,46,9],[28,2,29,5],[1,2,2,5],[14,1,14,2],[40,1,40,2],[36,2,36,4],[33,2,33,4],[43,2,43,3],[41,1,41,2],[39,1,39,2],[16,2,16,3],[37,3,37,4],[24,0,24,10],[31,1,31,8]]}
["DRH/Commission des œuvres sociales",null,null,null,null,null,null,null,null,null,null,"lien parenté","contribution","Organisme médicale",null,null,null,null,"Adresse",null,null,null,"daira","Nmbr ordon","type de pres","analyses","Spécialiste","Radio","control"]
[null,null," Prise en charge",null,null,null,null,null,null,null,null,"Pére","100% à la charge de la COS","Laboratoire des Analyses Médicales du Dr BOUKHTOUCHE",null,null,null,null,"10 , Bd kHEMISTI-Alger-",null,null,null,"Bab El Oued",1,"Consultations","Analyses","Allergologie","Radio"]
[null,null,null,null,null,null,null,"N°……………",null,1,null,"Mére","75% à la charge de la COS","Centre de Diagnostique Medicale -KHERAGHEL-",null,null,null,null,"04, Rue Djurdjura-Ben Aknoun (Derriere la station d'essence)",null,null,null,"Baraki",2,"Analyses",null,"Cardiologie","Echographie"]
[null,"Centre Médico-Sociale Maameri Med Tahar -PROTECTION CIVIL-",null,null,null,null,null,null,null,null,null,"Conjoint","50% à la charge de la COS","Centre Médico-Sociale Maameri Med Tahar -PROTECTION CIVIL-",null,null,null,null,"97 , rue Didouche Mourad-Alger-",null,null,null,"Bir Mourad Raïs",3,"Radiologie",null,"Dermatologie","I.R.M"]
[null,{"$f":"IF(B4=N2,S2,IF(B4=N3,S3,IF(B4=N4,S7,IF(B4=N5,S6,IF(B4=N6,S4,IF(B4=N7,S5))))))","v":"Cité Rabia Tahar Bab Ezzouar - Alger -"},null,null,null,null,null,null,null,null,null,"Enfants",null,"Centre d'Imagerie  Médicale (SARL CIMDEY)",null,null,null,null,"Cité les Asphodèles Bt. A Cage 8 Ben Aknoun-Alger- ",null,null,null,"Birtouta",4,null,null,"Diabétologie","Echo Dop"]
[null,null,null,null,null,null,null,null,null,null,null,"       -",null," Dr BERTAL-OPHTALMOLOGUE",null,null,null,null,"67 B ,Rue Boudjemaa MOGHNI Hussein –dey -Alger- (ex Rue PARNET)",null,null,null,"Bouzareah",5,null,null,"Endocrinologie","Scaner"]
["Nom et prénom de l’assuré :………..…………………………………………………………………………………………………………",null,"kamel kamel",null,null,null,"Date","2017-10-02",null,null,null,null,null,"Dr BOUTEMMINE Yousfi-OPHTALMOLOGUE",null,null,null,null,"Cité Rabia Tahar Bab Ezzouar - Alger -",null,null,null,"Chéraga",null,null,null,"Gastrologie"]
[null,null,null,null,null,null,null,null,null,null,null,null,null,null,null,null,null,null,null,null,null,null,"Dar El Beïda",null,null,null,"Gynécologie"]
[null,null,null,null,null,null,null,null,null,null,null,null,null,null,null,null,null,null,null,null,null,null,"Draria",null,null,null,"Nephrologie"]
["Nom et Prénom   : ……………………...……………………………………………………………………………………………………………",null,"karime",null,null,null,null,null,null,null,null,null,null,null,null,null,null,null,null,null,null,null,"El Harrach",null,null,null,"Orthobédie"]
["Lien de Parenté  : ",null,null,"Mére",null,null,null,null,null,null,null,null,null,null,null,null,null,null,null,null,null,null,"Hussein Dey",null,null,null,"Pédiatrie"]
[null,null,null,null,null,null,null,null,null,null,null,null,null,null,null,null,null,null,null,null,null,null,"Rouïba",null,null,null,"Pneumologie"]
["N° C.I.N / PC : ………..…………………………………………………………………","dsds",null,null,"Délivrée le : …..…………………….",null,null,"sds",null,null,null,null,null,null,null,null,null,null,null,null,null,null,"Sidi M’Hamed",null,null,null,"Rhumatologie"]
["Par : ……………………………………………………………….","Sds",null,null,null,null,null,null,null,null,null,null,null,null,null,null,null,null,null,null,null,null,"Zeralda"]
[" OU / APC………….","rais hamidou"]
[]
["Type de la préstation : …………",null,"Consultation"]
["Spécialité…………..",null,"Gastrologie"]
[]
["Nobre d'Ordonance ",null,2,null,null,"50% à la charge de la COS"]
[null,null,null,null,null,{"$f":"IF(F20=\"100% à la charge de la COS\",0%,IF(F20=\"75% à la charge de la COS\",25%,IF(F20=\"50% à la charge de la COS\",50%)))","v":0.5},"à la charge de l'Assuré(é)"]
["La présentation de la pièce d'identité de l'assuré est obligatoire"]
["La présentation d'une pièce justificative de lien de parenté avec l'assuré est obligatoire (Fiche Familiale)"]
["Durée de Validités : 30 Jours"]
[]
[null,"République Algérienne Démocratique et Populaire"]
[null,null,null,"Ministère des Finances"]
["DRH/Commission des œuvres sociales"]
[null,null," Prise en charge",null,null,null,null,{"$f":"H3","v":"N°……………"},null,{"$f":"J3","v":1}]
[]
[null,{"$f":"B4","v":"Centre Médico-Sociale Maameri Med Tahar -PROTECTION CIVIL-"}]
[null,{"$f":"B5","v":"Cité Rabia Tahar Bab Ezzouar - Alger -"}]
[]
["Nom et prénom de l’assuré :………..…………………………………………………………………………………………………………",null,{"$f":"C7","v":"kamel kamel"},null,null,null,"Date",{"$f":"H7","v":"2017-10-02"}]
[]
[]
["Nom et Prénom   : ……………………...……………………………………………………………………………………………………………",null,{"$f":"C10","v":"karime"}]
["Lien de Parenté  : ",null,null,{"$f":"D11","v":"Mére"}]
[]
["N° C.I.N / PC : ………..………………………………………………………………………………………………………………………………",{"$f":"B13","v":"dsds"},null,null,null,"Délivrée le : …………………",null,{"$f":"H13","v":"sds"}]
["Par : ………………………………………………………………………………",{"$f":"B14","v":"Sds"}]
["OU APC de",{"$f":"B15","v":"rais hamidou"}]
[]
["Type de la préstation : ",null,{"$f":"C17","v":"Consultation"}]
["Spécialités :",null,{"$f":"C18","v":"Gastrologie"}]
[null,null,null,null,null,{"$f":"F20","v":"50% à la charge de la COS"}]
[null,null,null,null,null,{"$f":"F21","v":0.5},{"$f":"G21","v":"à la charge de l'Assuré(é)"}]
["Nobre d'Ordonance ",null,{"$f":"C20","v":2}]
["La présentation de la pièce d'identité de l'assuré est obligatoire"]
["La présentation d'une pièce justificative de lien de parenté avec l'assuré est obligatoire (Fiche Familiale)"]
["Durée de Validités : 30 Jours"]

{"sheet":"Liste","index":1,"n_rows":9,"n_cols":15,"rows_kept":9,"cut":false,"hidden":false,"merged":[]}
["N°","Nom Prénom / Assuré","Nom Prénom du Bénéficiare","Lien  de Parenté","N° C.N ou P.C","Lélivré le :","Daira de :","A.P.C de :","Type de Préstation","Spécilité","Contribution de la C.O.S","Nmbr  Ordo","Nom du préstataire","Contrôle","DATE"]
[null,null,null,null,null,null,null,null,null,null,null,null,null,{"$f":"Tableau1[[#This Row],[Nom Prénom / Assuré]] & Tableau1[[#This Row],[Nom Prénom du Bénéficiare]]","v":""}]
[415,"zrzarazr","SEHILI MOHAMED","Mére",402685,"2015-03-05","Draria",null,"Cardiologie",null,null,3,"Centre de Diagnostique Medicale -KHERAGHEL-",{"$f":"Tableau1[[#This Row],[Nom Prénom / Assuré]] & Tableau1[[#This Row],[Nom Prénom du Bénéficiare]]","v":"zrzarazrSEHILI MOHAMED"},"2017-05-02"]
[1,"tadjine abdellah","abderrahmane","Enfants",123456,"0602/2005","Bab El Oued","rais hamidou","Consultation","Gastrologie","50% à la charge de la COS",2,"Centre Médico-Sociale Maameri Med Tahar -PROTECTION CIVIL-",{"$f":"Tableau1[[#This Row],[Nom Prénom / Assuré]] & Tableau1[[#This Row],[Nom Prénom du Bénéficiare]]","v":"tadjine abdellahabderrahmane"},"2017-10-02"]
[1,"tadjine abdellah","abderrahmane","Enfants",123456,"2005-06-02","Bab El Oued","rais hamidou","Consultation","Gastrologie","50% à la charge de la COS",2,"Centre Médico-Sociale Maameri Med Tahar -PROTECTION CIVIL-",{"$f":"Tableau1[[#This Row],[Nom Prénom / Assuré]] & Tableau1[[#This Row],[Nom Prénom du Bénéficiare]]","v":"tadjine abdellahabderrahmane"},"2017-10-02"]
[1,"tadjine abdellah","abderrahmane","Enfants",123456,"2005-06-02","Bab El Oued","rais hamidou","Consultation","Gastrologie","50% à la charge de la COS",2,"Centre Médico-Sociale Maameri Med Tahar -PROTECTION CIVIL-",{"$f":"Tableau1[[#This Row],[Nom Prénom / Assuré]] & Tableau1[[#This Row],[Nom Prénom du Bénéficiare]]","v":"tadjine abdellahabderrahmane"},"2017-10-02"]
[1,"said mouloud","abderrahmane","Enfants","dsds","sds","Sds","rais hamidou","Consultation","Gastrologie","50% à la charge de la COS",2,"Centre Médico-Sociale Maameri Med Tahar -PROTECTION CIVIL-",{"$f":"Tableau1[[#This Row],[Nom Prénom / Assuré]] & Tableau1[[#This Row],[Nom Prénom du Bénéficiare]]","v":"said mouloudabderrahmane"},"2017-10-02"]
[1,"kamel kamel","karime","Enfants","dsds","sds","Sds","rais hamidou","Consultation","Gastrologie","50% à la charge de la COS",2,"Centre Médico-Sociale Maameri Med Tahar -PROTECTION CIVIL-",{"$f":"Tableau1[[#This Row],[Nom Prénom / Assuré]] & Tableau1[[#This Row],[Nom Prénom du Bénéficiare]]","v":"kamel kamelkarime"},"2017-10-02"]
[1,"houhou","karime","Enfants","dsds","sds","Sds","rais hamidou","Consultation","Gastrologie","50% à la charge de la COS",2,"Centre Médico-Sociale Maameri Med Tahar -PROTECTION CIVIL-",{"$f":"Tableau1[[#This Row],[Nom Prénom / Assuré]] & Tableau1[[#This Row],[Nom Prénom du Bénéficiare]]","v":"houhoukarime"},"2017-10-02"]

{"sheet":"Feuil1","index":2,"n_rows":8,"n_cols":1,"rows_kept":8,"cut":false,"hidden":false,"merged":[]}
["a"]
["b"]
["c"]
["d"]
["e"]
["f"]
["g"]
["h"]